bitfinex/quotes_ETHUSD_20240917
["timestamp","ask_amount","ask_price","bid_price","bid_amount"]
[1726555536807,2.2546,2308.0,2307.7,4.33315]
[1726555537237,0.09880683,2307.9,2307.7,4.33315]
[1726555538217,0.09880683,2307.9,2307.6,4.33348]
[1726555538606,0.09880683,2307.9,2307.7,1.56180233]
[1726555539001,0.09880683,2307.9,2307.8,6.82503]
[1726555539215,0.09880683,2307.9,2307.8,7.66371323]
[1726555539391,0.09878345,2307.9,2307.8,7.66371323]
[1726555539713,2.3859,2308.3,2307.8,3.33058323]
[1726555540039,5.3859,2308.3,2307.8,6.82503]
[1726555540395,0.09898982,2308.2,2307.8,4.33313]
[1726555540819,0.09892215,2308.1,2307.8,4.33313]
[1726555541135,0.09892215,2308.1,2307.8,5.89483233]
[1726555541346,2.3859,2308.3,2308.0,1.56180233]
[1726555541496,7.47,2308.4,2308.0,10.22705233]
[1726555541838,7.47,2308.4,2308.0,5.89439233]
[1726555542139,3.0,2308.4,2308.0,5.89439233]
[1726555542723,3.0,2308.4,2308.0,10.22705233]
[1726555542926,3.0,2308.4,2308.0,5.89439233]
[1726555545593,0.09914349,2308.3,2308.0,5.89439233]
[1726555546440,0.09914349,2308.3,2308.0,4.33259]
[1726555546638,0.09914349,2308.3,2307.9,4.33289]
[1726555546639,2.3231,2308.2,2307.9,4.33289]
[1726555546934,0.09909084,2308.1,2307.9,4.33289]
[1726555547136,0.09909084,2308.1,2307.9,5.67565722]
[1726555548641,0.09909084,2308.1,2308.0,1.34795912]
[1726555549851,0.09909084,2308.1,2308.0,3.37072527]
[1726555550571,0.09909084,2308.1,2308.0,1.34795912]
[1726555550712,0.09909084,2308.1,2307.8,0.9087799]
[1726555551054,0.09909084,2308.1,2307.9,3.37216306]
[1726555551371,0.09909084,2308.1,2307.8,0.9087799]
[1726555551513,2.2688,2308.0,2307.9,3.37226476]
[1726555551825,2.36788,2308.0,2307.9,3.37226476]
[1726555552413,2.36788,2308.0,2307.8,0.9087799]
[1726555552753,2.36788,2308.0,2307.9,1.34901985]
[1726555553050,2.36788,2308.0,2307.9,3.37253508]
[1726555553508,2.36788,2308.0,2307.9,3.37275509]
[1726555557432,2.36788,2308.0,2307.9,3.37352046]
[1726555561031,2.36788,2308.0,2307.9,3.3766049]
[1726555562367,0.09908,2308.0,2307.9,3.3766049]
[1726555562542,6.69957,2308.2,2307.9,3.3766049]
[1726555562751,8.102762,2308.2,2308.0,1.35064196]
[1726555562960,8.102762,2308.2,2307.8,0.9087799]
[1726555563129,8.102762,2308.2,2307.9,3.37660365]
[1726555563471,8.102762,2308.2,2308.0,1.35064146]
[1726555563634,8.102762,2308.2,2307.8,0.9087799]
[1726555563973,8.102762,2308.2,2307.9,3.37680863]
[1726555564144,8.102762,2308.2,2307.8,0.9087799]
[1726555564145,8.102762,2308.2,2308.0,1.35072345]
[1726555564333,8.102762,2308.2,2307.8,0.9087799]
[1726555564533,8.102762,2308.2,2307.9,4.28570023]
[1726555564779,8.102762,2308.2,2308.0,3.37697532]
[1726555564948,8.102762,2308.2,2307.9,0.9087799]
[1726555565274,8.102762,2308.2,2308.0,3.37702782]
[1726555565575,9.69948,2308.2,2307.8,2.47058223]
[1726555565728,9.69948,2308.2,2307.9,3.37683408]
[1726555565926,9.69948,2308.2,2308.0,1.35073363]
[1726555566131,9.69948,2308.2,2307.8,0.9087799]
[1726555566456,5.3671,2308.2,2307.9,3.37666913]
[1726555566632,5.3671,2308.2,2308.0,1.35066765]
[1726555566946,10.66959,2308.2,2307.8,0.9087799]
[1726555567147,10.66959,2308.2,2307.9,3.37635701]
[1726555567511,10.66959,2308.2,2307.8,0.9087799]
[1726555567658,10.66959,2308.2,2307.9,3.37607293]
[1726555567967,10.66959,2308.2,2307.8,0.9087799]
[1726555568164,9.69965,2308.2,2307.9,3.37614466]
[1726555568471,5.3671,2308.2,2307.8,0.9087799]
[1726555568772,9.6995,2308.2,2307.9,3.37629035]
[1726555568939,5.3671,2308.2,2307.8,0.9087799]
[1726555569145,5.3671,2308.2,2307.9,3.37669398]
[1726555569351,5.3671,2308.2,2308.0,1.35067759]
[1726555569555,11.102655,2308.2,2307.8,0.9087799]
[1726555569742,11.102655,2308.2,2307.9,3.37758995]
[1726555569949,11.102655,2308.2,2307.8,0.9087799]
[1726555570278,11.102655,2308.2,2307.9,3.37757618]
[1726555570436,9.69948,2308.2,2307.8,0.9087799]
[1726555570632,9.69948,2308.2,2307.9,3.37746738]
[1726555570833,9.69948,2308.2,2307.8,0.9087799]
[1726555571059,9.69948,2308.2,2307.9,3.37737365]
[1726555571304,9.69948,2308.2,2307.8,0.9087799]
[1726555571578,9.69948,2308.2,2307.9,3.37732761]
[1726555571771,9.69948,2308.2,2307.8,0.9087799]
[1726555571964,9.69948,2308.2,2307.9,3.3776126]
[1726555572167,9.69948,2308.2,2307.8,0.9087799]
[1726555572377,9.69948,2308.2,2307.9,3.37766852]
[1726555572559,9.69948,2308.2,2307.8,0.9087799]
[1726555572767,9.69948,2308.2,2307.9,3.37763288]
[1726555572954,9.69948,2308.2,2307.8,0.9087799]
[1726555573147,9.69948,2308.2,2307.9,3.3775451]
[1726555573370,9.69948,2308.2,2307.8,0.9087799]
[1726555573683,9.69948,2308.2,2307.9,3.37747716]
[1726555573889,9.69948,2308.2,2307.8,0.9087799]
[1726555574075,9.69948,2308.2,2307.9,3.37745513]
[1726555574248,9.69948,2308.2,2307.8,0.9087799]
[1726555574444,9.69948,2308.2,2307.9,3.37741771]
[1726555574751,9.69948,2308.2,2307.8,0.9087799]
[1726555574953,9.69948,2308.2,2307.9,3.3773102]
[1726555575153,9.69948,2308.2,2307.8,0.9087799]
[1726555575456,9.69948,2308.2,2307.9,3.37744403]
[1726555575665,0.0988939,2308.1,2307.8,0.9087799]
[1726555575862,0.0988939,2308.1,2307.9,3.37756433]
[1726555576156,0.0988939,2308.1,2307.8,0.9087799]
[1726555576482,0.0988939,2308.1,2307.9,3.37764808]
[1726555576785,0.0988939,2308.1,2307.8,0.9087799]
[1726555577091,0.0988939,2308.1,2307.9,3.3775919]
[1726555577283,0.0988939,2308.1,2307.8,0.9087799]
[1726555577581,0.0988939,2308.1,2307.9,1.35104663]
[1726555577760,0.0988939,2308.1,2307.8,0.9087799]
[1726555577961,0.0988939,2308.1,2307.9,3.37744107]
[1726555578273,0.0988939,2308.1,2307.8,0.9087799]
[1726555578476,0.0988939,2308.1,2307.9,1.35092347]
[1726555578671,0.0988939,2308.1,2307.8,0.9087799]
[1726555578892,0.0988939,2308.1,2307.9,3.37737708]
[1726555579049,0.0988939,2308.1,2307.8,0.9087799]
[1726555579246,0.0988939,2308.1,2307.9,1.35096111]
[1726555579584,0.0988939,2308.1,2307.8,0.9087799]
[1726555579890,0.0988939,2308.1,2307.9,3.3772142]
[1726555580092,0.0988939,2308.1,2308.0,1.35088568]
[1726555580259,0.0988939,2308.1,2308.0,1.35081302]
[1726555580460,0.0988939,2308.1,2308.0,7.70980445]
[1726555580775,9.59582,2308.4,2308.0,3.37705445]
[1726555580975,9.59582,2308.4,2307.9,7.5760599]
[1726555580976,0.09877857,2308.1,2307.9,2.3344]
[1726555581147,9.59582,2308.4,2308.0,3.37704567]
[1726555581351,0.09873757,2308.0,2307.9,9.18404901]
[1726555581592,9.59582,2308.4,2307.9,10.95319713]
[1726555581752,9.59582,2308.4,2308.0,3.37710723]
[1726555582088,9.59582,2308.4,2307.9,7.5760899]
[1726555582392,9.59582,2308.4,2308.0,3.37706295]
[1726555582588,11.735595,2308.4,2307.9,7.5760899]
[1726555582794,2.4067,2308.2,2308.0,1.35054874]
[1726555582998,2.4067,2308.2,2307.8,5.2417999]
[1726555583170,2.4067,2308.2,2307.9,3.37634225]
[1726555583370,2.4067,2308.2,2308.0,1.3505369]
[1726555583579,2.4067,2308.2,2307.8,5.2417999]
[1726555583899,2.4067,2308.2,2307.9,3.37628923]
[1726555584065,2.4067,2308.2,2308.0,1.35051569]
[1726555584255,2.4067,2308.2,2307.8,9.5748099]
[1726555584452,3.0,2308.3,2307.9,11.05830053]
[1726555584700,2.2557,2308.4,2308.0,3.37640063]
[1726555584701,5.2557,2308.4,2308.0,3.37640063]
[1726555584901,5.2557,2308.4,2307.9,7.6818999]
[1726555585080,5.2557,2308.4,2308.0,3.37560817]
[1726555585271,5.2557,2308.4,2307.9,7.6818999]
[1726555585470,5.2557,2308.4,2308.0,3.37572388]
[1726555585684,5.2557,2308.4,2307.9,7.6818999]
[1726555585893,5.2557,2308.4,2308.0,3.37570653]
[1726555586100,9.58771,2308.4,2307.9,7.6818999]
[1726555586322,9.58771,2308.4,2308.0,3.37570097]
[1726555586608,9.58771,2308.4,2307.9,7.6818999]
[1726555586813,9.58771,2308.4,2308.0,3.37575718]
[1726555586964,9.58771,2308.4,2307.9,7.6818999]
[1726555587164,9.58771,2308.4,2308.0,3.37576778]
[1726555587394,9.58771,2308.4,2307.9,7.6818999]
[1726555587587,9.58771,2308.4,2308.0,3.37621971]
[1726555587789,9.58771,2308.4,2307.9,7.6818999]
[1726555588111,9.58771,2308.4,2308.0,3.37626085]
[1726555588269,9.58771,2308.4,2307.9,7.6818999]
[1726555588613,9.58771,2308.4,2308.0,1.35064506]
[1726555588614,2.4991,2308.2,2308.0,1.35064506]
[1726555588780,2.4991,2308.2,2307.8,5.2417899]
[1726555588981,2.4991,2308.2,2307.9,3.376718]
[1726555589186,2.4991,2308.2,2308.0,1.3506872]
[1726555589394,2.4991,2308.2,2307.8,5.2417899]
[1726555589575,2.4991,2308.2,2307.9,3.3768825]
[1726555589775,3.07927788,2308.2,2308.0,1.35072642]
[1726555590044,2.4991,2308.2,2307.8,5.2417899]
[1726555590315,2.4991,2308.2,2307.9,3.37690521]
[1726555590470,0.0971901,2308.1,2308.0,1.35066751]
[1726555591582,0.0971901,2308.1,2308.0,3.37721599]
[1726555593207,0.0971901,2308.1,2308.0,1.35066751]
[1726555593413,0.79005711,2308.1,2307.8,0.9087799]
[1726555593567,0.0971901,2308.1,2307.9,3.37848073]
[1726555593775,0.0971901,2308.1,2308.0,1.35139017]
[1726555593973,15.66151243,2308.1,2308.0,1.35139017]
[1726555594173,15.66151243,2308.1,2307.6,0.9087799]
[1726555594174,4.33294,2307.9,2307.6,0.9087799]
[1726555594386,6.76713,2307.8,2307.7,3.37930985]
[1726555594593,3.0,2307.7,2307.5,0.9087799]
[1726555594815,4.15299064,2307.7,2307.6,3.3796296]
[1726555595406,10.88190064,2307.7,2307.6,1.35185184]
[1726555595680,4.33354,2307.6,2307.2,2.31032055]
[1726555595900,3.95740233,2307.5,2307.3,3.37954575]
[1726555596076,3.95740233,2307.5,2307.2,0.9471507]
[1726555596402,8.23717233,2307.3,2307.2,0.0383708]
[1726555596607,11.78717233,2307.3,2307.2,0.0383708]
[1726555597607,16.12124233,2307.3,2307.2,0.0383708]
[1726555600216,11.78717233,2307.3,2307.2,0.0383708]
[1726555600379,11.83749123,2307.3,2307.2,0.0383708]
[1726555600580,5.3413,2307.3,2307.2,0.0383708]
[1726555600825,3.0,2307.3,2307.2,0.0383708]
[1726555602277,9.80561,2307.5,2307.2,0.0383708]
[1726555603987,4.33388,2307.4,2307.2,0.0383708]
[1726555604190,3.0,2307.3,2307.2,0.0383708]
[1726555605622,3.09632762,2307.3,2307.2,0.0383708]
[1726555607818,7.43039762,2307.3,2307.2,0.0383708]
[1726555608894,9.75939762,2307.3,2307.2,0.0383708]
[1726555609804,7.43039762,2307.3,2307.2,0.0383708]
[1726555612334,9.05803715,2307.3,2307.2,0.0383708]
[1726555612569,11.45873715,2307.3,2307.2,0.0383708]
[1726555615241,3.09632762,2307.3,2307.2,0.0383708]
[1726555615794,0.09627512,2307.3,2307.2,5.93442313]
[1726555616044,4.33325,2307.8,2307.3,6.83216]
[1726555616241,7.47,2307.9,2307.3,6.83216]
[1726555616242,7.47,2307.9,2307.3,6.91873103]
[1726555616450,7.47,2307.9,2307.4,2.40503564]
[1726555616742,4.33289,2308.0,2307.4,6.73888564]
[1726555616937,4.33257,2308.1,2307.5,4.33365]
[1726555617095,4.33248,2308.2,2307.7,2.4981]
[1726555617297,4.33259,2308.1,2307.7,2.4981]
[1726555617543,4.33248,2308.2,2307.7,3.83820009]
[1726555618614,4.33207,2308.4,2307.7,8.17149009]
[1726555618615,8.6642,2308.4,2307.7,8.17149009]
[1726555619548,4.33207,2308.4,2307.7,8.17149009]
[1726555619744,4.33207,2308.4,2307.8,1.15533171]
[1726555620385,8.66421,2308.4,2307.8,1.15533171]
[1726555622758,4.33207,2308.4,2307.8,1.15533171]
[1726555623281,4.33207,2308.4,2307.8,5.48844171]
[1726555623431,0.09285369,2308.3,2307.9,2.4393]
[1726555625302,4.42504369,2308.3,2307.9,2.4393]
[1726555625583,4.42504369,2308.3,2307.7,6.73317]
[1726555625784,4.42504369,2308.3,2307.7,8.1780267]
[1726555627153,7.33239,2308.2,2307.7,6.73317]
[1726555627353,7.33239,2308.2,2307.7,2.4]
[1726555627354,0.09305211,2308.1,2307.7,2.4]
[1726555628287,0.09305211,2308.1,2307.7,6.7333]
[1726555629197,0.09305211,2308.1,2307.7,2.4]
[1726555635405,0.09305211,2308.1,2307.7,7.83998]
[1726555635612,0.09305211,2308.1,2307.7,12.17326]
[1726555635905,0.09305211,2308.1,2307.8,2.2599]
[1726555636279,7.3323,2308.3,2307.8,2.2599]
[1726555636481,0.08973188,2308.0,2307.8,7.7011697]
[1726555636692,8.66425,2308.4,2307.8,7.7011697]
[1726555636875,0.08963751,2307.9,2307.8,7.7011697]
[1726555637061,8.66425,2308.4,2307.8,7.7011697]
[1726555637263,8.66425,2308.4,2307.9,1.20343397]
[1726555637486,2.3065,2308.5,2308.0,6.61674]
[1726555637487,3.0,2308.5,2308.0,6.61674]
[1726555638116,7.33184,2308.5,2308.0,6.61674]
[1726555639319,4.33201,2308.4,2308.0,2.2841]
[1726555639702,4.33137,2308.8,2308.2,2.4358]
[1726555639897,3.0,2308.7,2308.2,2.4358]
[1726555640192,4.33163,2308.6,2308.2,2.4358]
[1726555645193,5.65397319,2308.6,2308.2,2.4358]
[1726555645426,2.74855368,2308.5,2308.0,2.3986]
[1726555645718,4.33238,2308.2,2308.0,2.3986]
[1726555647131,5.35487619,2308.2,2308.0,2.3986]
[1726555649029,5.35487619,2308.2,2307.8,2.3574]
[1726555649211,4.33238,2308.2,2307.8,2.3574]
[1726555650598,0.08693801,2308.1,2307.8,2.3574]
[1726555660622,0.45358491,2308.0,2307.8,2.3574]
[1726555660912,0.54028098,2308.0,2307.8,2.3574]
[1726555662347,0.54028098,2308.0,2307.8,3.25365598]
[1726555663093,0.54028098,2308.0,2307.9,1.34895292]
[1726555663963,0.54028098,2308.0,2307.8,3.25365598]
[1726555664158,0.54028098,2308.0,2307.8,7.58674598]
[1726555664362,0.54028098,2308.0,2307.9,1.34922983]
[1726555664546,0.54028098,2308.0,2307.8,7.58674598]
[1726555664747,0.54028098,2308.0,2307.9,1.34922706]
[1726555665059,0.54028098,2308.0,2307.8,7.58674598]
[1726555665245,0.54028098,2308.0,2307.9,1.34925452]
[1726555665445,0.54028098,2308.0,2307.8,7.58674598]
[1726555665646,0.54028098,2308.0,2307.9,1.34925889]
[1726555665822,0.54028098,2308.0,2307.8,7.58674598]
[1726555666024,0.54028098,2308.0,2307.9,1.34923888]
[1726555666227,0.54028098,2308.0,2307.8,7.58674598]
[1726555666424,0.54028098,2308.0,2307.9,0.89649078]
[1726555668041,0.54028098,2308.0,2307.8,7.58674598]
[1726555669136,0.54028098,2308.0,2307.8,3.25365598]
[1726555669364,0.54028098,2308.0,2307.8,2.3574]
[1726555670794,0.54028098,2308.0,2307.9,1.34965135]
[1726555671080,0.54028098,2308.0,2307.9,1.34971602]
[1726555671257,0.54028098,2308.0,2307.7,5.2419799]
[1726555671443,0.54028098,2308.0,2307.8,3.37417541]
[1726555671639,0.54028098,2308.0,2307.9,1.34969282]
[1726555671839,0.54028098,2308.0,2307.7,5.2419799]
[1726555672082,0.54028098,2308.0,2307.8,3.37430563]
[1726555672305,0.54028098,2308.0,2307.7,5.2419799]
[1726555672583,0.54028098,2308.0,2307.8,3.37427273]
[1726555672743,0.54028098,2308.0,2307.7,5.2419799]
[1726555672945,0.54028098,2308.0,2307.8,3.37471398]
[1726555673144,0.54028098,2308.0,2307.9,1.34988559]
[1726555674440,0.54028098,2308.0,2307.9,1.34999213]
[1726555679505,0.54028098,2308.0,2307.9,1.34969325]
[1726555682746,0.54028098,2308.0,2307.9,1.33969325]
[1726555682950,0.54028098,2308.0,2307.9,1.34968966]
[1726555686224,0.54028098,2308.0,2307.9,3.37434714]
[1726555686560,0.54028098,2308.0,2307.9,1.34968966]
[1726555689221,0.54028098,2308.0,2307.9,3.37535217]
[1726555689628,2.89268098,2308.0,2307.9,1.34968966]
[1726555690129,2.89268098,2308.0,2307.9,3.37539483]
[1726555691665,0.54028098,2308.0,2307.9,4.28417473]
[1726555691833,0.54028098,2308.0,2307.9,3.37539483]
[1726555692457,0.54028098,2308.0,2307.9,2.02729187]
[1726555696071,0.54028098,2308.0,2307.9,2.93607177]
[1726555696235,0.54028098,2308.0,2307.9,2.02729187]
[1726555697376,0.54028098,2308.0,2307.9,2.02738391]
[1726555699057,0.54028098,2308.0,2307.7,0.9087799]
[1726555699058,3.80135101,2308.0,2307.7,0.9087799]
[1726555699384,3.80135101,2308.0,2307.6,0.9087799]
[1726555699385,2.281,2307.7,2307.6,0.9087799]
[1726555699537,3.09845619,2307.7,2307.6,2.93578162]
[1726555699744,7.51697497,2307.7,2307.6,2.02700172]
[1726555699975,7.51697497,2307.7,2307.4,0.9087799]
[1726555700187,1.34105369,2307.6,2307.5,2.02735565]
[1726555700389,1.34105369,2307.6,2307.4,0.9087799]
[1726555700539,1.42619477,2307.6,2307.5,2.02654599]
[1726555700745,0.08514108,2307.6,2307.5,2.02654599]
[1726555701084,0.08514108,2307.6,2307.5,2.93532589]
[1726555701244,0.08514108,2307.6,2307.5,2.02654599]
[1726555702074,0.08514108,2307.6,2307.5,2.02621798]
[1726555702583,0.08514108,2307.6,2307.5,2.02591397]
[1726555702780,0.08514108,2307.6,2307.5,3.37651513]
[1726555703357,0.08514108,2307.6,2307.5,1.35060116]
[1726555705660,0.08514108,2307.6,2307.3,0.9087799]
[1726555705866,0.08514108,2307.6,2307.4,5.76752503]
[1726555706191,0.08514108,2307.6,2307.5,1.34973001]
[1726555706395,0.08514108,2307.6,2307.5,3.37380755]
[1726555706801,0.08514108,2307.6,2307.4,3.3019799]
[1726555706962,0.08514108,2307.6,2307.5,3.3737173]
[1726555707360,0.08514108,2307.6,2307.5,1.34948692]
[1726555708388,0.08514108,2307.6,2307.5,3.37345813]
[1726555708702,0.08514108,2307.6,2307.5,1.34948692]
[1726555711557,0.08514108,2307.6,2307.5,1.34907626]
[1726555714510,0.08514108,2307.6,2307.4,2.3932]
[1726555715212,0.08514108,2307.6,2307.5,1.34890115]
[1726555716603,0.08514108,2307.6,2307.5,1.34881492]
[1726555717191,0.08514108,2307.6,2307.4,2.3932]
[1726555719103,0.08514108,2307.6,2307.5,1.34890437]
[1726555719563,0.08514108,2307.6,2307.5,3.37217615]
[1726555719769,0.08514108,2307.6,2307.5,16.34399233]
[1726555720069,0.45356815,2307.7,2307.6,6.8291]
[1726555720284,0.45356815,2307.7,2307.6,11.10873045]
[1726555720479,0.45356815,2307.7,2307.6,10.20127615]
[1726555720791,0.45356815,2307.7,2307.6,11.10871236]
[1726555720998,0.45356815,2307.7,2307.6,13.31059119]
[1726555721163,0.45356815,2307.7,2307.6,13.30818275]
[1726555721594,0.45356815,2307.7,2307.6,12.40074654]
[1726555721796,0.45356815,2307.7,2307.6,13.30800871]
[1726555722189,0.45356815,2307.7,2307.6,12.40074654]
[1726555722910,0.45356815,2307.7,2307.6,13.30801252]
[1726555723104,0.45356815,2307.7,2307.6,12.40074654]
[1726555723412,0.45356815,2307.7,2307.6,13.30805051]
[1726555725796,0.45356815,2307.7,2307.6,12.40074654]
[1726555727279,0.45356815,2307.7,2307.6,9.90514654]
[1726555727484,0.53563019,2307.7,2307.6,9.90514654]
[1726555728419,0.53563019,2307.7,2307.6,5.57164654]
[1726555728591,0.53563019,2307.7,2307.6,3.36976771]
[1726555728917,2.88723019,2307.7,2307.4,0.90730397]
[1726555729151,2.88723019,2307.7,2307.5,3.37071098]
[1726555729289,2.88723019,2307.7,2307.4,0.90730397]
[1726555729631,2.88723019,2307.7,2307.5,3.37076702]
[1726555729846,2.88723019,2307.7,2307.4,0.90730397]
[1726555730134,2.88723019,2307.7,2307.5,3.37080395]
[1726555730291,2.88723019,2307.7,2307.4,0.90730397]
[1726555730490,2.88723019,2307.7,2307.5,3.37116205]
[1726555730686,2.88723019,2307.7,2307.4,0.90730397]
[1726555730944,2.88723019,2307.7,2307.5,1.34852044]
[1726555731098,2.88723019,2307.7,2307.3,6.82681121]
[1726555731293,2.88723019,2307.7,2307.4,3.37125708]
[1726555731499,2.88723019,2307.7,2307.5,3.37122668]
[1726555731730,2.88723019,2307.7,2307.4,0.90730397]
[1726555731933,2.88723019,2307.7,2307.5,4.62344898]
[1726555732113,2.88723019,2307.7,2307.6,1.34842069]
[1726555732329,2.88723019,2307.7,2307.6,1.34785792]
[1726555732640,2.88723019,2307.7,2307.6,1.34818957]
[1726555732858,2.88723019,2307.7,2307.4,0.90730397]
[1726555733008,2.88723019,2307.7,2307.5,3.37075938]
[1726555733346,2.88723019,2307.7,2307.4,2.74213533]
[1726555733502,2.88723019,2307.7,2307.5,3.37181225]
[1726555733703,2.88723019,2307.7,2307.4,2.74213533]
[1726555733940,2.88723019,2307.7,2307.5,3.37154188]
[1726555734237,2.88723019,2307.7,2307.4,2.74213533]
[1726555734544,2.88723019,2307.7,2307.5,3.3717609]
[1726555734746,2.88723019,2307.7,2307.4,2.74213533]
[1726555735042,2.88723019,2307.7,2307.5,3.37171871]
[1726555735234,2.88723019,2307.7,2307.4,2.74213533]
[1726555735400,2.88723019,2307.7,2307.5,3.37182593]
[1726555735700,2.88723019,2307.7,2307.4,2.74213533]
[1726555735903,2.88723019,2307.7,2307.5,3.37210052]
[1726555736136,2.88723019,2307.7,2307.4,2.74213533]
[1726555736437,2.88723019,2307.7,2307.5,3.3719436]
[1726555736643,2.88723019,2307.7,2307.4,2.74213533]
[1726555736851,2.88723019,2307.7,2307.5,3.37217318]
[1726555737060,2.88723019,2307.7,2307.4,2.74213533]
[1726555737223,2.88723019,2307.7,2307.5,3.37240768]
[1726555737422,2.88723019,2307.7,2307.6,1.34896307]
[1726555740614,2.88723019,2307.7,2307.6,1.3490505]
[1726555740909,2.88723019,2307.7,2307.6,3.3725402]
[1726555741115,2.88723019,2307.7,2307.6,1.3490505]
[1726555741659,2.88723019,2307.7,2307.6,3.37263862]
[1726555742154,0.53563019,2307.7,2307.6,3.37263862]
[1726555742356,0.53563019,2307.7,2307.6,3.37267721]
[1726555742726,0.53563019,2307.7,2307.4,2.74213533]
[1726555743049,2.3754,2307.6,2307.5,3.3740537]
[1726555743271,2.3754,2307.6,2307.5,1.34962148]
[1726555743564,2.45739232,2307.6,2307.5,1.34962148]
[1726555743775,2.45739232,2307.6,2307.5,3.37409575]
[1726555744231,2.45739232,2307.6,2307.5,3.37390993]
[1726555744825,0.08199232,2307.6,2307.5,3.37390993]
[1726555747162,2.49299232,2307.6,2307.5,1.34956397]
[1726555747386,3.51742037,2307.6,2307.5,1.34956397]
[1726555748665,3.51742037,2307.6,2307.3,0.90730397]
[1726555748961,2.49299232,2307.6,2307.4,3.37438898]
[1726555749168,2.49299232,2307.6,2307.3,0.90730397]
[1726555749367,2.49299232,2307.6,2307.4,3.37434108]
[1726555749567,2.49299232,2307.6,2307.3,0.90730397]
[1726555749758,2.49299232,2307.6,2307.4,3.37433621]
[1726555749958,2.49299232,2307.6,2307.5,1.34973418]
[1726555751547,2.49299232,2307.6,2307.3,0.90730397]
[1726555751756,2.49299232,2307.6,2307.4,3.37277187]
[1726555752072,2.49299232,2307.6,2307.3,0.90730397]
[1726555752278,2.49299232,2307.6,2307.4,3.37274065]
[1726555752433,2.49299232,2307.6,2307.3,0.90730397]
[1726555752630,2.49299232,2307.6,2307.4,3.37267618]
[1726555752830,2.49299232,2307.6,2307.5,1.34907047]
[1726555753238,0.08199232,2307.6,2307.5,1.34907047]
[1726555755864,0.08199232,2307.6,2307.3,0.90730397]
[1726555756202,0.08199232,2307.6,2307.4,3.37211548]
[1726555756371,0.08199232,2307.6,2307.3,0.90730397]
[1726555756699,0.08199232,2307.6,2307.4,3.37194597]
[1726555756872,0.08199232,2307.6,2307.3,0.90730397]
[1726555757189,0.08199232,2307.6,2307.4,3.37172135]
[1726555757396,2.4821,2307.5,2307.2,0.94567477]
[1726555757600,2.4821,2307.5,2307.3,3.37175091]
[1726555757759,2.4821,2307.5,2307.4,1.34870036]
[1726555758081,8.43782662,2307.5,2307.2,0.94567477]
[1726555758280,11.60319557,2307.5,2307.3,1.34879231]
[1726555758594,7.26938557,2307.5,2307.2,0.0383708]
[1726555758765,7.26938557,2307.5,2307.3,1.34877896]
[1726555758968,8.58571032,2307.5,2307.2,0.0383708]
[1726555760820,0.45359557,2307.5,2307.3,1.34829723]
[1726555760992,0.45359557,2307.5,2307.2,2.3029708]
[1726555761184,0.45359557,2307.5,2307.3,3.37057681]
[1726555761483,0.45359557,2307.5,2307.2,2.3029708]
[1726555761682,0.45359557,2307.5,2307.3,1.3481918]
[1726555761885,0.45359557,2307.5,2307.2,2.3029708]
[1726555762205,0.45359557,2307.5,2307.3,1.34811108]
[1726555762525,0.45359557,2307.5,2307.2,2.3029708]
[1726555762824,0.45359557,2307.5,2307.3,1.34803201]
[1726555763121,0.45359557,2307.5,2307.2,2.3029708]
[1726555763281,0.45359557,2307.5,2307.3,1.34802278]
[1726555763629,0.45359557,2307.5,2307.2,2.3029708]
[1726555763795,0.45359557,2307.5,2307.3,1.34794489]
[1726555763992,0.45359557,2307.5,2307.2,2.3029708]
[1726555764178,0.45359557,2307.5,2307.3,1.34788444]
[1726555764384,0.45359557,2307.5,2307.2,2.3029708]
[1726555764719,0.45359557,2307.5,2307.3,1.34778862]
[1726555764917,0.45359557,2307.5,2307.2,2.3029708]
[1726555765121,0.45359557,2307.5,2307.3,1.34784252]
[1726555765321,0.45359557,2307.5,2307.2,2.3029708]
[1726555765881,4.78731557,2307.5,2307.2,0.0383708]
[1726555766108,2.2578,2307.4,2307.2,0.0383708]
[1726555766502,6.5917,2307.4,2307.2,0.0383708]
[1726555766681,2.2578,2307.4,2307.2,0.0383708]
[1726555770681,0.07882616,2307.3,2307.2,0.0383708]
[1726555770909,0.07882616,2307.3,2307.2,3.40788831]
[1726555773226,0.07882616,2307.3,2307.2,0.0383708]
[1726555773524,0.07882616,2307.3,2307.2,3.40843515]
[1726555774614,0.07882616,2307.3,2307.2,4.31573912]
[1726555774815,0.07882616,2307.3,2307.2,3.40843515]
[1726555778126,0.07882616,2307.3,2307.2,0.0383708]
[1726555778326,0.07882616,2307.3,2307.2,3.40868842]
[1726555783163,0.07882616,2307.3,2307.2,12.01959269]
[1726555783360,0.45359557,2307.5,2307.2,12.01959269]
[1726555783563,0.07876191,2307.4,2307.3,4.27789667]
[1726555783739,0.07876191,2307.4,2307.3,3.3705927]
[1726555785376,0.07876191,2307.4,2307.3,4.27789667]
[1726555786585,0.07876191,2307.4,2307.3,3.3705927]
[1726555787273,0.07876191,2307.4,2307.3,5.7586927]
[1726555787490,0.07876191,2307.4,2307.3,6.66599667]
[1726555787630,0.07876191,2307.4,2307.3,3.3705927]
[1726555787830,0.07876191,2307.4,2307.3,3.37107496]
[1726555790342,3.21845166,2307.4,2307.3,3.37107496]
[1726555790545,2.43186191,2307.4,2307.3,3.37107496]
[1726555791256,2.43186191,2307.4,2307.3,3.37164165]
[1726555792780,2.43186191,2307.4,2307.3,3.37175453]
[1726555794862,6.76574191,2307.4,2307.3,3.37175453]
[1726555795175,8.37710285,2307.4,2307.3,1.34898527]
[1726555795470,8.37710285,2307.4,2307.2,0.0383708]
[1726555795634,4.33407,2307.3,2307.2,0.0383708]
[1726555795832,11.57314,2307.3,2307.2,3.41082614]
[1726555796135,12.75970132,2307.3,2307.2,0.0383708]
[1726555801154,8.42563132,2307.3,2307.2,0.0383708]
[1726555808679,15.75970132,2307.3,2307.2,0.0383708]
[1726555810130,11.42563132,2307.3,2307.2,0.0383708]
[1726555810476,15.75970132,2307.3,2307.2,0.0383708]
[1726555812553,11.42563132,2307.3,2307.2,0.0383708]
[1726555812928,15.75970132,2307.3,2307.2,0.0383708]
[1726555813348,11.42563132,2307.3,2307.2,0.0383708]
[1726555814342,15.75970132,2307.3,2307.2,0.0383708]
[1726555814718,11.42563132,2307.3,2307.2,0.0383708]
[1726555815049,15.75970132,2307.3,2307.2,0.0383708]
[1726555820375,11.42563132,2307.3,2307.2,0.0383708]
[1726555820772,15.75970132,2307.3,2307.2,0.0383708]
[1726555823211,0.07878038,2307.3,2307.2,0.0383708]
[1726555823477,0.07878038,2307.3,2307.2,2.4644708]
[1726555823943,4.41285038,2307.3,2307.2,2.4644708]
[1726555824151,0.07878038,2307.3,2307.2,2.4644708]
[1726555827682,4.41285038,2307.3,2307.2,2.4644708]
[1726555827883,0.07878038,2307.3,2307.2,0.0383708]